[Event "Titled Tuesday Blitz August 09 Early 2022"]
[White "Quirke, Jeffrey"]
[Black "Shohat, Yotam"]
[WhiteFideId "2013029"]
[BlackFideId "2813955"]
[WhiteElo "2218"]
[BlackElo "2119"]
[Result "1-0"]
[Round "01"]
[TimeControl "180+1"]
[Date "2022.08.09"]
[WhiteClock "0:00:03"]
[BlackClock "0:00:01"]

1. d4 {[%clk 0:03:00]}  Nf6 {[%clk 0:02:54]} 2. c4 {[%clk 0:03:00]}  g6 {[%clk 0:02:50]} 3. Nc3 {[%clk 0:03:00]}  Bg7 {[%clk 0:02:46]} 4. e4 {[%clk 0:03:00]}  O-O {[%clk 0:02:45]} 5. Be2 {[%clk 0:03:00]}  d6 {[%clk 0:02:45]} 6. Nf3 {[%clk 0:03:01]}  Na6 {[%clk 0:02:45]} 7. O-O {[%clk 0:02:59]}  e5 {[%clk 0:02:45]} 8. Be3 {[%clk 0:02:59]}  Qe8 {[%clk 0:02:43]} 9. dxe5 {[%clk 0:02:40]}  dxe5 {[%clk 0:02:44]} 10. h3 {[%clk 0:02:36]}  b6 {[%clk 0:02:43]} 11. a3 {[%clk 0:02:26]}  Bb7 {[%clk 0:02:36]} 12. Qc2 {[%clk 0:02:25]}  Nc5 {[%clk 0:02:35]} 13. Nd2 {[%clk 0:02:17]}  Ne6 {[%clk 0:02:00]} 14. Nd5 {[%clk 0:02:08]}  c6 {[%clk 0:01:53]} 15. Nxf6+ {[%clk 0:01:56]}  Bxf6 {[%clk 0:01:54]} 16. Nf3 {[%clk 0:01:41]}  c5 {[%clk 0:01:45]} 17. b4 {[%clk 0:01:26]}  Nd4 {[%clk 0:01:35]} 18. Bxd4 {[%clk 0:01:20]}  exd4 {[%clk 0:01:31]} 19. Bd3 {[%clk 0:01:20]}  Bg7 {[%clk 0:00:56]} 20. bxc5 {[%clk 0:01:19]}  bxc5 {[%clk 0:00:56]} 21. Rab1 {[%clk 0:01:19]}  Qd7 {[%clk 0:00:48]} 22. Nd2 {[%clk 0:01:18]}  Rfb8 {[%clk 0:00:15]} 23. Rb5 {[%clk 0:01:08]}  Bf8 {[%clk 0:00:06]} 24. Rfb1 {[%clk 0:01:06]}  Qc7 {[%clk 0:00:04]} 25. Qb3 {[%clk 0:00:41]}  Qf4 {[%clk 0:00:03]} 26. Nf3 {[%clk 0:00:33]}  Bxe4 {[%clk 0:00:03]} 27. Rxb8 {[%clk 0:00:27]}  Rxb8 {[%clk 0:00:03]} 28. Qxb8 {[%clk 0:00:25]}  Qxb8 {[%clk 0:00:04]} 29. Rxb8 {[%clk 0:00:24]}  Bxd3 {[%clk 0:00:05]} 30. Ne5 {[%clk 0:00:24]}  Bf5 {[%clk 0:00:05]} 31. Kf1 {[%clk 0:00:11]}  Kg7 {[%clk 0:00:05]} 32. Rb7 {[%clk 0:00:08]}  Be6 {[%clk 0:00:04]} 33. Ke2 {[%clk 0:00:03]}  Bd6 {[%clk 0:00:04]} 34. Nf3 {[%clk 0:00:02]}  Bxc4+ {[%clk 0:00:04]} 35. Kd2 {[%clk 0:00:03]}  Bf4+ {[%clk 0:00:05]} 36. Kc2 {[%clk 0:00:02]}  Bd5 {[%clk 0:00:04]} 37. Rxa7 {[%clk 0:00:02]}  Be4+ {[%clk 0:00:03]} 38. Kb2 {[%clk 0:00:01]}  d3 {[%clk 0:00:02]} 39. Kc3 {[%clk 0:00:01]}  d2 {[%clk 0:00:01]} 40. Nxd2 {[%clk 0:00:01]}  Bxg2 {[%clk 0:00:02]} 41. Nc4 {[%clk 0:00:01]}  Bxh3 {[%clk 0:00:01]} 42. Kb3 {[%clk 0:00:01]}  Be6 {[%clk 0:00:01]} 43. a4 {[%clk 0:00:02]}  Bc7 {[%clk 0:00:01]} 44. a5 {[%clk 0:00:02]}  Kf6 {[%clk 0:00:02]} 45. a6 {[%clk 0:00:03]}  Bd8 {[%clk 0:00:02]} 46. Rb7 {[%clk 0:00:03]}  Bd5 {[%clk 0:00:01]} 47. Rb8 {[%clk 0:00:03]}  Bc7 {[%clk 0:00:01]} 48. a7 {[%clk 0:00:03]} 1-0


[Site "https://www.chess.com"]

[Event "Titled Tuesday Blitz August 09 Early 2022"]
[White "Rios Escobar, Adan"]
[Black "Samunenkov, Ihor"]
[WhiteFideId "3403645"]
[BlackFideId "14187086"]
[WhiteElo "2399"]
[BlackElo "2441"]
[Result "0-1"]
[Round "01"]
[TimeControl "180+1"]
[Date "2022.08.09"]
[WhiteClock "0:00:04"]
[BlackClock "0:00:05"]

1. d4 {[%clk 0:02:57]}  d5 {[%clk 0:02:57]} 2. g3 {[%clk 0:02:55]}  c5 {[%clk 0:02:55]} 3. Nf3 {[%clk 0:02:52]}  cxd4 {[%clk 0:02:55]} 4. Bg2 {[%clk 0:02:50]}  Nf6 {[%clk 0:02:48]} 5. O-O {[%clk 0:02:49]}  h6 {[%clk 0:02:48]} 6. b3 {[%clk 0:02:48]}  e6 {[%clk 0:02:40]} 7. Bb2 {[%clk 0:02:47]}  Bc5 {[%clk 0:02:40]} 8. Nxd4 {[%clk 0:02:46]}  e5 {[%clk 0:02:40]} 9. Nf3 {[%clk 0:02:44]}  e4 {[%clk 0:02:40]} 10. Nd4 {[%clk 0:02:44]}  O-O {[%clk 0:02:39]} 11. e3 {[%clk 0:02:41]}  Nbd7 {[%clk 0:02:20]} 12. c4 {[%clk 0:02:34]}  Ne5 {[%clk 0:02:21]} 13. h3 {[%clk 0:02:29]}  dxc4 {[%clk 0:02:16]} 14. Nd2 {[%clk 0:02:22]}  cxb3 {[%clk 0:01:39]} 15. N4xb3 {[%clk 0:02:22]}  Bd6 {[%clk 0:01:38]} 16. Kh2 {[%clk 0:02:09]}  Bf5 {[%clk 0:01:33]} 17. Nd4 {[%clk 0:02:09]}  Bh7 {[%clk 0:01:33]} 18. Qa4 {[%clk 0:02:02]}  a6 {[%clk 0:01:31]} 19. Rfd1 {[%clk 0:02:02]}  Qe7 {[%clk 0:01:30]} 20. Kg1 {[%clk 0:00:41]}  Nd3 {[%clk 0:01:25]} 21. Bc3 {[%clk 0:00:31]}  Rac8 {[%clk 0:00:58]} 22. Ne2 {[%clk 0:00:30]}  Rfe8 {[%clk 0:00:31]} 23. Rab1 {[%clk 0:00:29]}  Nd5 {[%clk 0:00:30]} 24. Ba1 {[%clk 0:00:27]}  f5 {[%clk 0:00:21]} 25. Qb3 {[%clk 0:00:15]}  Qf7 {[%clk 0:00:21]} 26. Qxb7 {[%clk 0:00:15]}  Rc7 {[%clk 0:00:11]} 27. Qxa6 {[%clk 0:00:14]}  Rec8 {[%clk 0:00:09]} 28. Qa4 {[%clk 0:00:12]}  h5 {[%clk 0:00:08]} 29. h4 {[%clk 0:00:11]}  Nf6 {[%clk 0:00:04]} 30. Qd4 {[%clk 0:00:10]}  Be5 {[%clk 0:00:03]} 31. Qa4 {[%clk 0:00:10]}  Bxa1 {[%clk 0:00:04]} 32. Rxa1 {[%clk 0:00:11]}  Ng4 {[%clk 0:00:05]} 33. Nxe4 {[%clk 0:00:06]}  fxe4 {[%clk 0:00:05]} 34. Bxe4 {[%clk 0:00:07]}  Ndxf2 {[%clk 0:00:04]} 35. Bxh7+ {[%clk 0:00:06]}  Kxh7 {[%clk 0:00:05]} 36. Rd4 {[%clk 0:00:05]}  Qf3 {[%clk 0:00:04]} 37. Rf4 {[%clk 0:00:04]}  Qh1# {[%clk 0:00:05]} 0-1


[Site "https://www.chess.com"]

[Event "Titled Tuesday Blitz August 09 Early 2022"]
[White "Rohith Krishna S"]
[Black "Garagulya, Konstantin"]
[WhiteFideId "46617051"]
[BlackFideId "4128931"]
[WhiteElo "2118"]
[BlackElo "2329"]
[Result "1-0"]
[Round "01"]
[TimeControl "180+1"]
[Date "2022.08.09"]
[WhiteClock "0:00:20"]
[BlackClock "0:00:03"]

1. Nf3 {[%clk 0:02:57]}  Nf6 {[%clk 0:02:38]} 2. c4 {[%clk 0:02:55]}  e6 {[%clk 0:02:38]} 3. d4 {[%clk 0:02:55]}  d5 {[%clk 0:02:39]} 4. g3 {[%clk 0:02:54]}  Bb4+ {[%clk 0:02:39]} 5. Bd2 {[%clk 0:02:54]}  a5 {[%clk 0:02:40]} 6. Bg2 {[%clk 0:02:53]}  dxc4 {[%clk 0:02:40]} 7. Qc2 {[%clk 0:02:50]}  b5 {[%clk 0:02:39]} 8. a4 {[%clk 0:02:44]}  c6 {[%clk 0:02:38]} 9. axb5 {[%clk 0:02:44]}  Bxd2+ {[%clk 0:02:36]} 10. Nbxd2 {[%clk 0:02:44]}  cxb5 {[%clk 0:02:36]} 11. b3 {[%clk 0:02:39]}  cxb3 {[%clk 0:02:25]} 12. Qxb3 {[%clk 0:02:40]}  b4 {[%clk 0:02:22]} 13. O-O {[%clk 0:02:26]}  O-O {[%clk 0:02:20]} 14. Ne5 {[%clk 0:02:13]}  Ra6 {[%clk 0:02:17]} 15. e3 {[%clk 0:02:09]}  Nd5 {[%clk 0:02:09]} 16. Ne4 {[%clk 0:02:03]}  Nd7 {[%clk 0:02:07]} 17. Nxd7 {[%clk 0:02:00]}  Bxd7 {[%clk 0:02:07]} 18. Nc5 {[%clk 0:02:00]}  Ra7 {[%clk 0:01:55]} 19. Bxd5 {[%clk 0:02:00]}  exd5 {[%clk 0:01:54]} 20. Qxd5 {[%clk 0:02:01]}  Bb5 {[%clk 0:01:54]} 21. Qxd8 {[%clk 0:02:00]}  Rxd8 {[%clk 0:01:55]} 22. Rfb1 {[%clk 0:02:00]}  Rda8 {[%clk 0:01:52]} 23. Rb2 {[%clk 0:01:47]}  Kf8 {[%clk 0:01:49]} 24. f3 {[%clk 0:01:44]}  Ke7 {[%clk 0:01:50]} 25. Kf2 {[%clk 0:01:44]}  Kd6 {[%clk 0:01:49]} 26. e4 {[%clk 0:01:44]}  f6 {[%clk 0:01:49]} 27. Ke3 {[%clk 0:01:44]}  Bc6 {[%clk 0:01:44]} 28. Nd3 {[%clk 0:01:40]}  Bb5 {[%clk 0:01:42]} 29. Nc5 {[%clk 0:01:39]}  Bc6 {[%clk 0:01:40]} 30. Rc1 {[%clk 0:01:39]}  Rb8 {[%clk 0:01:34]} 31. d5 {[%clk 0:01:26]}  Be8 {[%clk 0:01:32]} 32. Kd4 {[%clk 0:01:16]}  a4 {[%clk 0:01:32]} 33. f4 {[%clk 0:01:17]}  a3 {[%clk 0:01:31]} 34. e5+ {[%clk 0:01:17]}  Ke7 {[%clk 0:01:29]} 35. d6+ {[%clk 0:01:16]}  Kf8 {[%clk 0:01:27]} 36. Rb3 {[%clk 0:01:12]}  a2 {[%clk 0:01:22]} 37. Ra1 {[%clk 0:01:12]}  Rb6 {[%clk 0:01:00]} 38. Kd5 {[%clk 0:00:52]}  Bc6+ {[%clk 0:00:58]} 39. Kc4 {[%clk 0:00:49]}  Bb5+ {[%clk 0:00:58]} 40. Kd4 {[%clk 0:00:46]}  Be8 {[%clk 0:00:53]} 41. Nd3 {[%clk 0:00:44]}  Bf7 {[%clk 0:00:36]} 42. Rxb4 {[%clk 0:00:42]}  Rxb4+ {[%clk 0:00:36]} 43. Nxb4 {[%clk 0:00:43]}  Ra4 {[%clk 0:00:35]} 44. Kc5 {[%clk 0:00:42]}  Ra3 {[%clk 0:00:27]} 45. Nc6 {[%clk 0:00:36]}  Rc3+ {[%clk 0:00:19]} 46. Kb6 {[%clk 0:00:36]}  Ke8 {[%clk 0:00:18]} 47. Kc7 {[%clk 0:00:35]}  Be6 {[%clk 0:00:17]} 48. exf6 {[%clk 0:00:34]}  gxf6 {[%clk 0:00:17]} 49. Re1 {[%clk 0:00:35]}  Kf7 {[%clk 0:00:14]} 50. d7 {[%clk 0:00:34]}  Bxd7 {[%clk 0:00:11]} 51. Kxd7 {[%clk 0:00:35]}  Rc2 {[%clk 0:00:11]} 52. h4 {[%clk 0:00:20]}  h5 {[%clk 0:00:09]} 53. Ra1 {[%clk 0:00:21]}  Rd2+ {[%clk 0:00:07]} 54. Kc7 {[%clk 0:00:20]}  Ke6 {[%clk 0:00:07]} 55. Nb4 {[%clk 0:00:20]}  Kf5 {[%clk 0:00:08]} 56. Rxa2 {[%clk 0:00:20]}  Rxa2 {[%clk 0:00:08]} 57. Nxa2 {[%clk 0:00:21]}  Kg4 {[%clk 0:00:08]} 58. Nc3 {[%clk 0:00:20]}  Kxg3 {[%clk 0:00:09]} 59. Nd5 {[%clk 0:00:20]}  Kxh4 {[%clk 0:00:09]} 60. Nxf6 {[%clk 0:00:20]}  Kg3 {[%clk 0:00:08]} 61. Nxh5+ {[%clk 0:00:20]}  Kg4 {[%clk 0:00:08]} 62. Kd6 {[%clk 0:00:20]}  Kxh5 {[%clk 0:00:07]} 63. f5 {[%clk 0:00:21]}  Kh6 {[%clk 0:00:04]} 64. f6 {[%clk 0:00:20]}  Kg6 {[%clk 0:00:03]} 65. Ke7 {[%clk 0:00:20]} 1-0


[Site "https://www.chess.com"]

[Event "Titled Tuesday Blitz August 09 Early 2022"]
[White "Rosenberg, Evan S"]
[Black "Agasarov, Benik"]
[WhiteFideId "2019299"]
[BlackFideId "13314823"]
[WhiteElo "2416"]
[BlackElo "2152"]
[Result "0-1"]
[Round "01"]
[TimeControl "180+1"]
[Date "2022.08.09"]
[WhiteClock "0:00:01"]
[BlackClock "0:02:08"]

1. e4 {[%clk 0:02:56]}  e5 {[%clk 0:02:59]} 2. Bc4 {[%clk 0:02:55]}  Nf6 {[%clk 0:02:56]} 3. d3 {[%clk 0:02:54]}  c6 {[%clk 0:02:56]} 4. Nf3 {[%clk 0:02:54]}  d5 {[%clk 0:02:56]} 5. Bb3 {[%clk 0:02:54]}  Bb4+ {[%clk 0:02:56]} 6. c3 {[%clk 0:02:50]}  Bd6 {[%clk 0:02:56]} 7. O-O {[%clk 0:02:47]}  O-O {[%clk 0:02:55]} 8. Bg5 {[%clk 0:02:45]}  Be6 {[%clk 0:02:52]} 9. d4 {[%clk 0:02:29]}  Nbd7 {[%clk 0:02:45]} 10. exd5 {[%clk 0:02:19]}  Bxd5 {[%clk 0:02:39]} 11. Bxd5 {[%clk 0:02:18]}  cxd5 {[%clk 0:02:40]} 12. dxe5 {[%clk 0:02:19]}  Nxe5 {[%clk 0:02:40]} 13. Nxe5 {[%clk 0:02:10]}  Bxe5 {[%clk 0:02:41]} 14. Qf3 {[%clk 0:02:10]}  Qd6 {[%clk 0:02:36]} 15. h3 {[%clk 0:02:04]}  Ne4 {[%clk 0:02:35]} 16. Be3 {[%clk 0:02:01]}  f5 {[%clk 0:02:34]} 17. Nd2 {[%clk 0:02:00]}  f4 {[%clk 0:02:31]} 18. Nxe4 {[%clk 0:01:53]}  dxe4 {[%clk 0:02:31]} 19. Qxe4 {[%clk 0:01:46]}  fxe3 {[%clk 0:02:31]} 20. fxe3 {[%clk 0:01:47]}  Qe7 {[%clk 0:02:23]} 21. Qd5+ {[%clk 0:01:42]}  Kh8 {[%clk 0:02:23]} 22. Rad1 {[%clk 0:01:33]}  h6 {[%clk 0:02:19]} 23. a4 {[%clk 0:01:15]}  Qg5 {[%clk 0:02:18]} 24. Rf3 {[%clk 0:00:35]}  Rxf3 {[%clk 0:02:17]} 25. Qxf3 {[%clk 0:00:34]}  Re8 {[%clk 0:02:16]} 26. Rd5 {[%clk 0:00:13]}  Qe7 {[%clk 0:02:11]} 27. Qf5 {[%clk 0:00:05]}  Bb8 {[%clk 0:02:09]} 28. Rd3 {[%clk 0:00:01]}  Rf8 {[%clk 0:02:08]} 0-1


[Site "https://www.chess.com"]

[Event "Titled Tuesday Blitz August 09 Early 2022"]
[White "Sadykov, Ramil"]
[Black "Martinez Alcantara, Jose Eduardo"]
[WhiteFideId "24113590"]
[BlackFideId "3805662"]
[WhiteElo "2243"]
[BlackElo "2703"]
[Result "0-1"]
[Round "01"]
[TimeControl "180+1"]
[Date "2022.08.09"]
[WhiteClock "0:00:02"]
[BlackClock "0:00:30"]

1. e4 {[%clk 0:03:00]}  c5 {[%clk 0:02:56]} 2. Nf3 {[%clk 0:02:59]}  d6 {[%clk 0:02:57]} 3. Bb5+ {[%clk 0:02:58]}  Nd7 {[%clk 0:02:57]} 4. O-O {[%clk 0:02:44]}  a6 {[%clk 0:02:56]} 5. Be2 {[%clk 0:02:40]}  Ngf6 {[%clk 0:02:56]} 6. d3 {[%clk 0:02:19]}  g6 {[%clk 0:02:53]} 7. Re1 {[%clk 0:02:15]}  Bg7 {[%clk 0:02:53]} 8. Bf1 {[%clk 0:02:12]}  O-O {[%clk 0:02:53]} 9. c3 {[%clk 0:02:08]}  Ne5 {[%clk 0:02:46]} 10. d4 {[%clk 0:01:58]}  Nxf3+ {[%clk 0:02:32]} 11. Qxf3 {[%clk 0:01:58]}  Nd7 {[%clk 0:02:11]} 12. d5 {[%clk 0:01:50]}  b5 {[%clk 0:02:09]} 13. a4 {[%clk 0:01:44]}  Rb8 {[%clk 0:02:07]} 14. axb5 {[%clk 0:01:37]}  axb5 {[%clk 0:02:08]} 15. Na3 {[%clk 0:01:34]}  b4 {[%clk 0:01:57]} 16. Nc4 {[%clk 0:01:29]}  Ne5 {[%clk 0:01:57]} 17. Nxe5 {[%clk 0:01:24]}  Bxe5 {[%clk 0:01:58]} 18. Bd2 {[%clk 0:01:08]}  Bd7 {[%clk 0:01:48]} 19. Bc4 {[%clk 0:00:42]}  Bb5 {[%clk 0:01:32]} 20. Bxb5 {[%clk 0:00:30]}  Rxb5 {[%clk 0:01:33]} 21. Qd3 {[%clk 0:00:28]}  Rb7 {[%clk 0:01:24]} 22. cxb4 {[%clk 0:00:18]}  cxb4 {[%clk 0:01:25]} 23. Ra4 {[%clk 0:00:18]}  b3 {[%clk 0:01:20]} 24. Bc3 {[%clk 0:00:17]}  Bxc3 {[%clk 0:01:17]} 25. Qxc3 {[%clk 0:00:17]}  Qb8 {[%clk 0:01:18]} 26. Rc1 {[%clk 0:00:16]}  Rb5 {[%clk 0:01:10]} 27. g3 {[%clk 0:00:11]}  Rc5 {[%clk 0:01:08]} 28. Qe3 {[%clk 0:00:07]}  Rfc8 {[%clk 0:01:00]} 29. Rxc5 {[%clk 0:00:04]}  Rxc5 {[%clk 0:01:01]} 30. Ra3 {[%clk 0:00:04]}  Rb5 {[%clk 0:01:01]} 31. Kg2 {[%clk 0:00:03]}  f6 {[%clk 0:00:50]} 32. Qc3 {[%clk 0:00:02]}  Kf7 {[%clk 0:00:43]} 33. h4 {[%clk 0:00:02]}  h5 {[%clk 0:00:42]} 34. Qc4 {[%clk 0:00:02]}  Rb4 {[%clk 0:00:41]} 35. Qd3 {[%clk 0:00:02]}  Qb6 {[%clk 0:00:37]} 36. Kf3 {[%clk 0:00:02]}  Qb7 {[%clk 0:00:35]} 37. Qe3 {[%clk 0:00:03]}  f5 {[%clk 0:00:32]} 38. exf5 {[%clk 0:00:02]}  Qxd5+ {[%clk 0:00:31]} 39. Ke2 {[%clk 0:00:02]}  Re4 {[%clk 0:00:30]} 0-1


[Site "https://www.chess.com"]

[Event "Titled Tuesday Blitz August 09 Early 2022"]
[White "Sanchez, Robert"]
[Black "Sokolovsky, Yahli"]
[WhiteFideId "2034360"]
[BlackFideId "2820242"]
[WhiteElo "2266"]
[BlackElo "1867"]
[Result "1-0"]
[Round "01"]
[TimeControl "180+1"]
[Date "2022.08.09"]
[WhiteClock "0:00:33"]
[BlackClock "0:00:03"]

1. e4 {[%clk 0:03:00]}  g6 {[%clk 0:02:56]} 2. d4 {[%clk 0:02:59]}  Bg7 {[%clk 0:02:56]} 3. Nc3 {[%clk 0:03:00]}  d6 {[%clk 0:02:56]} 4. Be3 {[%clk 0:02:59]}  a6 {[%clk 0:02:56]} 5. f3 {[%clk 0:03:00]}  b5 {[%clk 0:02:54]} 6. Qd2 {[%clk 0:03:00]}  Bb7 {[%clk 0:02:52]} 7. O-O-O {[%clk 0:02:58]}  Nd7 {[%clk 0:02:52]} 8. d5 {[%clk 0:02:58]}  Rc8 {[%clk 0:02:48]} 9. Kb1 {[%clk 0:02:58]}  c6 {[%clk 0:02:45]} 10. dxc6 {[%clk 0:02:58]}  Bxc6 {[%clk 0:02:38]} 11. Bd4 {[%clk 0:02:58]}  Ngf6 {[%clk 0:02:38]} 12. g4 {[%clk 0:02:57]}  O-O {[%clk 0:02:19]} 13. h4 {[%clk 0:02:56]}  h5 {[%clk 0:02:19]} 14. Bh3 {[%clk 0:02:36]}  b4 {[%clk 0:02:06]} 15. Nd5 {[%clk 0:02:33]}  Bxd5 {[%clk 0:02:01]} 16. exd5 {[%clk 0:02:32]}  Qc7 {[%clk 0:01:58]} 17. gxh5 {[%clk 0:02:25]}  Nxh5 {[%clk 0:01:58]} 18. Bxg7 {[%clk 0:02:25]}  Kxg7 {[%clk 0:01:49]} 19. Ne2 {[%clk 0:02:25]}  Rb8 {[%clk 0:01:44]} 20. Rhg1 {[%clk 0:02:16]}  Ne5 {[%clk 0:01:30]} 21. Qe3 {[%clk 0:01:59]}  Qc5 {[%clk 0:01:09]} 22. Nd4 {[%clk 0:01:55]}  Kh7 {[%clk 0:01:08]} 23. Rg5 {[%clk 0:01:48]}  Qxd5 {[%clk 0:01:00]} 24. Rxh5+ {[%clk 0:01:43]}  gxh5 {[%clk 0:01:00]} 25. Qg5 {[%clk 0:01:33]}  e6 {[%clk 0:00:30]} 26. Qxh5+ {[%clk 0:01:26]}  Kg8 {[%clk 0:00:27]} 27. Bxe6 {[%clk 0:01:19]}  Qxd4 {[%clk 0:00:15]} 28. Rxd4 {[%clk 0:01:06]}  fxe6 {[%clk 0:00:15]} 29. Rxd6 {[%clk 0:00:56]}  Rf5 {[%clk 0:00:15]} 30. Qh6 {[%clk 0:00:50]}  Nf7 {[%clk 0:00:16]} 31. Qxe6 {[%clk 0:00:44]}  Re5 {[%clk 0:00:16]} 32. Qg4+ {[%clk 0:00:41]}  Kf8 {[%clk 0:00:15]} 33. Rd1 {[%clk 0:00:40]}  Rbe8 {[%clk 0:00:13]} 34. b3 {[%clk 0:00:39]}  Re2 {[%clk 0:00:06]} 35. Qxb4+ {[%clk 0:00:38]}  R8e7 {[%clk 0:00:05]} 36. h5 {[%clk 0:00:36]}  Rh2 {[%clk 0:00:04]} 37. Qb8+ {[%clk 0:00:32]}  Re8 {[%clk 0:00:03]} 38. Qxh2 {[%clk 0:00:33]} 1-0


[Site "https://www.chess.com"]

[Event "Titled Tuesday Blitz August 09 Early 2022"]
[White "Senlle Caride, Miguel"]
[Black "Uskov, Artem"]
[WhiteFideId "2282500"]
[BlackFideId "34254854"]
[WhiteElo "2339"]
[BlackElo "2335"]
[Result "0-1"]
[Round "01"]
[TimeControl "180+1"]
[Date "2022.08.09"]
[WhiteClock "0:00:09"]
[BlackClock "0:00:12"]

1. g3 {[%clk 0:02:59]}  Nf6 {[%clk 0:02:53]} 2. Bg2 {[%clk 0:02:59]}  g6 {[%clk 0:02:52]} 3. Nf3 {[%clk 0:02:58]}  Bg7 {[%clk 0:02:52]} 4. O-O {[%clk 0:02:59]}  O-O {[%clk 0:02:53]} 5. c4 {[%clk 0:02:56]}  d6 {[%clk 0:02:53]} 6. Nc3 {[%clk 0:02:54]}  Nc6 {[%clk 0:02:52]} 7. Rb1 {[%clk 0:02:46]}  a5 {[%clk 0:02:37]} 8. a3 {[%clk 0:02:44]}  Bf5 {[%clk 0:02:32]} 9. d3 {[%clk 0:02:43]}  e5 {[%clk 0:02:30]} 10. b4 {[%clk 0:02:39]}  axb4 {[%clk 0:02:31]} 11. axb4 {[%clk 0:02:39]}  Nd7 {[%clk 0:02:25]} 12. b5 {[%clk 0:02:32]}  Nd4 {[%clk 0:02:23]} 13. Nxd4 {[%clk 0:02:31]}  exd4 {[%clk 0:02:24]} 14. Ne4 {[%clk 0:02:32]}  Rb8 {[%clk 0:02:14]} 15. Bg5 {[%clk 0:02:20]}  Qc8 {[%clk 0:02:03]} 16. Qd2 {[%clk 0:02:18]}  Re8 {[%clk 0:02:01]} 17. Bh6 {[%clk 0:02:16]}  Bh8 {[%clk 0:01:55]} 18. Ra1 {[%clk 0:01:42]}  Ne5 {[%clk 0:01:49]} 19. Bg5 {[%clk 0:01:34]}  Bxe4 {[%clk 0:01:43]} 20. Bxe4 {[%clk 0:01:32]}  Nxc4 {[%clk 0:01:21]} 21. Qb4 {[%clk 0:01:05]}  Ne5 {[%clk 0:00:49]} 22. Rfc1 {[%clk 0:00:49]}  Qg4 {[%clk 0:00:48]} 23. Bf4 {[%clk 0:00:43]}  Qxe2 {[%clk 0:00:47]} 24. Bxe5 {[%clk 0:00:32]}  Bxe5 {[%clk 0:00:48]} 25. b6 {[%clk 0:00:31]}  c5 {[%clk 0:00:44]} 26. Qb5 {[%clk 0:00:27]}  Qg4 {[%clk 0:00:41]} 27. Bxb7 {[%clk 0:00:25]}  Rf8 {[%clk 0:00:27]} 28. Bg2 {[%clk 0:00:23]}  Qc8 {[%clk 0:00:22]} 29. b7 {[%clk 0:00:23]}  Qc7 {[%clk 0:00:22]} 30. Ra8 {[%clk 0:00:21]}  Kg7 {[%clk 0:00:21]} 31. Rca1 {[%clk 0:00:21]}  Bf6 {[%clk 0:00:21]} 32. Rxb8 {[%clk 0:00:20]}  Rxb8 {[%clk 0:00:21]} 33. Ra8 {[%clk 0:00:20]}  Be5 {[%clk 0:00:17]} 34. Rxb8 {[%clk 0:00:20]}  Qxb8 {[%clk 0:00:18]} 35. Qc6 {[%clk 0:00:20]}  d5 {[%clk 0:00:16]} 36. Qxd5 {[%clk 0:00:20]}  Qc7 {[%clk 0:00:16]} 37. Qc4 {[%clk 0:00:17]}  Bd6 {[%clk 0:00:16]} 38. Qa6 {[%clk 0:00:17]}  h5 {[%clk 0:00:14]} 39. Qa8 {[%clk 0:00:17]}  h4 {[%clk 0:00:14]} 40. Qc8 {[%clk 0:00:13]}  hxg3 {[%clk 0:00:14]} 41. hxg3 {[%clk 0:00:12]}  Kf6 {[%clk 0:00:13]} 42. Qg4 {[%clk 0:00:11]}  Ke7 {[%clk 0:00:13]} 43. Qf3 {[%clk 0:00:11]}  Kf8 {[%clk 0:00:11]} 44. Qd5 {[%clk 0:00:11]}  Kg7 {[%clk 0:00:10]} 45. Qc6 {[%clk 0:00:11]}  Qxc6 {[%clk 0:00:10]} 46. Bxc6 {[%clk 0:00:10]}  Kf6 {[%clk 0:00:11]} 47. Kg2 {[%clk 0:00:10]}  Bb8 {[%clk 0:00:12]} 48. Kf3 {[%clk 0:00:11]}  Ke5 {[%clk 0:00:12]} 49. Bb5 {[%clk 0:00:10]}  f5 {[%clk 0:00:13]} 50. Bc6 {[%clk 0:00:09]}  g5 {[%clk 0:00:13]} 51. Kg2 {[%clk 0:00:09]}  f4 {[%clk 0:00:13]} 52. gxf4+ {[%clk 0:00:09]}  Kxf4 {[%clk 0:00:14]} 53. f3 {[%clk 0:00:09]}  Ke3 {[%clk 0:00:14]} 54. Be4 {[%clk 0:00:09]}  c4 {[%clk 0:00:07]} 55. dxc4 {[%clk 0:00:08]}  d3 {[%clk 0:00:08]} 56. Bxd3 {[%clk 0:00:06]}  Kxd3 {[%clk 0:00:09]} 57. c5 {[%clk 0:00:07]}  Kd4 {[%clk 0:00:07]} 58. c6 {[%clk 0:00:07]}  Ke5 {[%clk 0:00:04]} 59. Kh3 {[%clk 0:00:07]}  Kf5 {[%clk 0:00:04]} 60. Kg2 {[%clk 0:00:06]}  Kf6 {[%clk 0:00:04]} 61. Kh3 {[%clk 0:00:05]}  Kf5 {[%clk 0:00:04]} 62. Kg2 {[%clk 0:00:06]}  Kf4 {[%clk 0:00:05]} 63. Kf2 {[%clk 0:00:06]}  Ke5 {[%clk 0:00:05]} 64. Ke3 {[%clk 0:00:05]}  Kd5 {[%clk 0:00:06]} 65. f4 {[%clk 0:00:05]}  gxf4+ {[%clk 0:00:06]} 66. Kf3 {[%clk 0:00:05]}  Kxc6 {[%clk 0:00:07]} 67. Kg4 {[%clk 0:00:06]}  Kxb7 {[%clk 0:00:08]} 68. Kf3 {[%clk 0:00:06]}  Kc6 {[%clk 0:00:09]} 69. Kg2 {[%clk 0:00:07]}  Kd5 {[%clk 0:00:10]} 70. Kf1 {[%clk 0:00:08]}  Ke4 {[%clk 0:00:11]} 71. Kg2 {[%clk 0:00:09]}  f3+ {[%clk 0:00:12]} 72. Kf1 {[%clk 0:00:10]}  Ke3 {[%clk 0:00:12]} 73. Ke1 {[%clk 0:00:10]}  f2+ {[%clk 0:00:11]} 74. Kf1 {[%clk 0:00:11]}  Ba7 {[%clk 0:00:11]} 75. Kg2 {[%clk 0:00:12]}  Ke2 {[%clk 0:00:12]} 76. Kg3 {[%clk 0:00:09]}  f1=Q {[%clk 0:00:12]} 0-1


[Site "https://www.chess.com"]